bitfinex/quotes_BTCUSD_20241025
["timestamp","ask_amount","ask_price","bid_price","bid_amount"]
[1729875071131,0.82476748,67767.0,67766.0,0.001648]
[1729875072319,0.99250724,67767.0,67766.0,0.001648]
[1729875072525,1.01550798,67767.0,67766.0,0.001648]
[1729875072932,0.84776822,67767.0,67766.0,0.001648]
[1729875073152,0.84776822,67767.0,67760.0,0.001646]
[1729875073153,0.380777,67761.0,67760.0,0.001646]
[1729875073370,0.73490172,67761.0,67760.0,0.001646]
[1729875074190,0.76236408,67761.0,67760.0,0.001646]
[1729875074904,0.76436408,67761.0,67760.0,0.001646]
[1729875075500,0.76236408,67761.0,67760.0,0.001646]
[1729875075703,0.76436408,67761.0,67760.0,0.001646]
[1729875076047,0.93210384,67761.0,67760.0,0.001646]
[1729875076493,1.03210384,67761.0,67760.0,0.001646]
[1729875076705,1.04133412,67761.0,67760.0,0.001646]
[1729875077510,1.04133412,67761.0,67748.0,0.001648]
[1729875077511,0.382503,67749.0,67748.0,0.001648]
[1729875077706,0.71454701,67749.0,67748.0,0.001648]
[1729875077910,0.73862772,67749.0,67748.0,0.001648]
[1729875078112,0.73662772,67749.0,67748.0,0.001648]
[1729875078737,0.73862772,67749.0,67748.0,0.001648]
[1729875078963,0.80424783,67749.0,67748.0,0.001648]
[1729875079589,0.80224783,67749.0,67748.0,0.001648]
[1729875080423,0.73658755,67749.0,67748.0,0.001648]
[1729875081462,0.73858755,67749.0,67748.0,0.001648]
[1729875081903,0.16264,67732.0,67731.0,0.001648]
[1729875082119,0.18273976,67732.0,67731.0,0.001648]
[1729875082563,0.33537976,67732.0,67731.0,0.001648]
[1729875082992,0.35115691,67732.0,67731.0,0.001648]
[1729875083213,0.34915691,67732.0,67731.0,0.001648]
[1729875083463,0.33537976,67732.0,67731.0,0.001648]
[1729875083699,0.44725333,67732.0,67731.0,0.001648]
[1729875083935,0.44525333,67732.0,67731.0,0.001648]
[1729875084189,0.015,67732.0,67731.0,0.001648]
[1729875084434,0.015,67732.0,67731.0,0.14929]
[1729875085909,0.015,67732.0,67731.0,0.001648]
[1729875087141,0.015,67732.0,67731.0,0.14929]
[1729875087806,0.015,67732.0,67731.0,0.001648]
[1729875088012,0.015,67732.0,67731.0,0.14929]
[1729875088218,0.015,67732.0,67731.0,0.001648]
[1729875089506,0.2149293,67732.0,67731.0,0.001648]
[1729875089733,0.16764,67732.0,67731.0,0.001648]
[1729875091067,0.02,67732.0,67731.0,0.001648]
[1729875091311,0.015,67732.0,67731.0,0.001648]
[1729875091960,0.015,67732.0,67731.0,0.14929]
[1729875092623,0.015,67732.0,67731.0,0.22479]
[1729875092823,0.005,67732.0,67731.0,0.37529381]
[1729875093042,0.005,67733.0,67732.0,0.14764]
[1729875093247,0.005,67733.0,67732.0,0.29814381]
[1729875093708,0.01,67733.0,67732.0,0.29814381]
[1729875095205,0.005,67733.0,67732.0,0.29814381]
[1729875095415,0.005,67739.0,67735.0,0.0762]
[1729875095616,0.01,67741.0,67740.0,0.147623]
[1729875095822,0.01,67741.0,67740.0,0.29812681]
[1729875096013,0.005,67741.0,67740.0,0.29812681]
[1729875097497,0.005,67741.0,67740.0,0.15050381]
[1729875097833,0.005,67741.0,67740.0,0.29812681]
[1729875097929,0.01,67741.0,67740.0,0.29812681]
[1729875098146,0.005,67741.0,67740.0,0.29812681]
[1729875099026,0.01,67741.0,67740.0,0.29812681]
[1729875110268,0.000824,67748.0,67740.0,0.29812681]
[1729875110269,0.000824,67748.0,67742.0,0.1]
[1729875110516,0.000824,67748.0,67747.0,0.147608]
[1729875110867,0.000824,67748.0,67747.0,0.55160327]
[1729875111176,0.000824,67748.0,67747.0,0.54865157]
[1729875111410,0.000824,67748.0,67747.0,0.64865157]
[1729875112381,0.000824,67748.0,67747.0,0.65065157]
[1729875112601,0.000824,67748.0,67747.0,0.72205157]
[1729875113073,0.000824,67748.0,67747.0,0.74505157]
[1729875113347,0.000824,67748.0,67747.0,0.75748475]
[1729875114246,0.000824,67761.0,67760.0,0.247579]
[1729875114458,0.000824,67761.0,67760.0,0.56582257]
[1729875117659,0.000824,67761.0,67760.0,0.73356233]
[1729875117886,0.000824,67761.0,67760.0,0.81736233]
[1729875118151,0.000824,67761.0,67760.0,0.88876233]
[1729875118392,0.000824,67761.0,67760.0,0.96673214]
[1729875118632,0.000824,67761.0,67760.0,0.90119024]
[1729875119103,0.000824,67761.0,67760.0,0.92419024]
[1729875119591,0.000824,67761.0,67760.0,0.96776154]
[1729875119820,0.00064639,67767.0,67766.0,0.331366]
[1729875120028,0.00064639,67767.0,67766.0,0.64760957]
[1729875120264,0.00064639,67767.0,67766.0,0.64960957]
[1729875121703,0.00064639,67767.0,67766.0,0.74400957]
[1729875122695,0.000823,67775.0,67774.0,0.66252852]
[1729875122913,0.000823,67775.0,67774.0,0.81103233]
[1729875123401,0.000823,67775.0,67774.0,0.64329257]
[1729875123878,0.000823,67775.0,67774.0,0.81303233]
[1729875124586,0.000823,67775.0,67774.0,0.83603233]
[1729875125550,0.000823,67775.0,67774.0,0.83503233]
[1729875125804,0.000823,67775.0,67774.0,0.83603233]
[1729875126058,0.000823,67775.0,67774.0,0.84867469]
[1729875128668,0.000824,67782.0,67781.0,0.247533]
[1729875128930,0.000824,67782.0,67781.0,0.64787657]
[1729875130286,0.000824,67782.0,67781.0,0.66073239]
[1729875130497,0.000824,67782.0,67781.0,0.65873239]
[1729875132850,0.000824,67782.0,67781.0,0.67112175]
[1729875133719,0.000824,67782.0,67781.0,0.67113315]
[1729875139449,0.000824,67782.0,67781.0,0.67313315]
[1729875139851,0.000824,67782.0,67781.0,0.67113315]
[1729875141710,0.000824,67782.0,67781.0,0.67313315]
[1729875142397,0.000824,67782.0,67781.0,0.67113315]
[1729875142804,0.000824,67782.0,67781.0,0.67313315]
[1729875143009,0.000824,67782.0,67781.0,0.67113315]
[1729875143329,0.000824,67782.0,67781.0,0.67313315]
[1729875143966,0.000824,67782.0,67781.0,0.67113315]
[1729875144199,0.000824,67782.0,67781.0,0.66026593]
[1729875144407,0.000824,67782.0,67781.0,0.66226593]
[1729875144846,0.000824,67782.0,67781.0,0.67117002]
[1729875145038,0.000824,67782.0,67781.0,0.67317002]
[1729875147073,0.000824,67782.0,67781.0,0.9173323]
[1729875147292,0.099072,67797.0,67796.0,0.147501]
[1729875147503,0.001672,67799.0,67798.0,0.247496]
[1729875147719,0.001672,67799.0,67798.0,0.41186739]
[1729875147925,0.001672,67799.0,67798.0,0.40891813]
[1729875148891,0.001672,67799.0,67798.0,0.39799981]
[1729875149281,0.001672,67799.0,67798.0,0.40891796]
[1729875150368,0.001672,67799.0,67798.0,0.42132941]
[1729875150594,0.000876,67800.0,67799.0,0.247494]
[1729875150804,0.001672,67805.0,67804.0,0.41522276]
[1729875151013,0.001672,67805.0,67804.0,0.57664472]
[1729875151479,0.094572,67805.0,67804.0,0.57664472]
[1729875152526,0.094572,67805.0,67804.0,0.60618472]
[1729875152742,0.094572,67805.0,67804.0,0.57664472]
[1729875154928,0.001672,67805.0,67804.0,0.57664472]
[1729875155413,0.001672,67805.0,67804.0,0.65404472]
[1729875156253,0.001672,67805.0,67804.0,0.65604472]
[1729875156476,0.001672,67805.0,67804.0,0.65404472]
[1729875157156,0.001672,67805.0,67804.0,0.69753964]
[1729875157606,0.001672,67805.0,67804.0,0.65404472]
[1729875157816,0.001672,67805.0,67804.0,0.57664472]
[1729875158458,0.001672,67805.0,67804.0,0.56572657]
[1729875158671,0.001672,67805.0,67804.0,0.57662484]
[1729875158876,0.001672,67805.0,67804.0,0.62015784]
[1729875159087,0.001672,67805.0,67804.0,0.64186722]
[1729875159506,0.001672,67805.0,67804.0,0.57662484]
[1729875160140,0.001672,67805.0,67804.0,0.62015273]
[1729875160568,0.001672,67805.0,67804.0,0.57662484]
[1729875161797,0.001672,67805.0,67804.0,0.56572657]
[1729875162039,0.001672,67805.0,67804.0,0.57661851]
[1729875163726,0.001672,67805.0,67804.0,0.62012534]
[1729875164354,0.001672,67805.0,67804.0,0.57661851]
[1729875164623,0.001672,67805.0,67804.0,0.65381851]
[1729875164861,0.001672,67811.0,67804.0,0.65381851]
[1729875164862,0.001672,67811.0,67810.0,0.41520976]
[1729875165071,0.001672,67811.0,67810.0,0.57660551]
[1729875165288,0.001672,67811.0,67810.0,0.62013313]
[1729875165911,0.001672,67811.0,67810.0,0.62013238]
[1729875166116,0.001672,67811.0,67810.0,0.57660551]
[1729875168480,0.098672,67811.0,67810.0,0.57660551]
[1729875168895,0.098672,67811.0,67810.0,0.58865766]
[1729875171598,0.098672,67811.0,67810.0,0.57660551]
[1729875172880,0.098672,67811.0,67810.0,0.56571357]
[1729875173088,0.098672,67811.0,67810.0,0.57659826]
[1729875174106,0.176972,67811.0,67810.0,0.57659826]
[1729875176618,0.181972,67811.0,67810.0,0.3088585]
[1729875177460,0.186972,67811.0,67810.0,0.3088585]
[1729875179575,0.186972,67811.0,67810.0,0.15835469]
[1729875180284,0.186972,67811.0,67810.0,0.01090911]
[1729875180547,0.34547,67810.0,67809.0,0.03]
[1729875180751,0.162481,67805.0,67804.0,0.001648]
[1729875180986,0.193,67805.0,67804.0,0.001648]
[1729875181228,0.340481,67805.0,67804.0,0.001648]
[1729875181438,0.193,67805.0,67804.0,0.001648]
[1729875183669,0.193,67805.0,67804.0,0.149131]
[1729875184504,0.188824,67805.0,67804.0,0.149131]
[1729875184706,0.193824,67805.0,67804.0,0.149131]
[1729875187263,0.183824,67805.0,67804.0,0.29963481]
[1729875187476,0.101924,67805.0,67804.0,0.09963481]
[1729875187698,0.101924,67805.0,67804.0,0.24711781]
[1729875187912,0.106924,67805.0,67804.0,0.24711781]
[1729875190288,0.101924,67805.0,67804.0,0.24711781]
[1729875191130,0.005824,67805.0,67804.0,0.24711781]
[1729875191717,0.010824,67805.0,67804.0,0.24711781]
[1729875193165,0.109824,67805.0,67804.0,0.24711781]
[1729875195848,0.109824,67805.0,67804.0,0.24876581]
[1729875199358,0.010824,67805.0,67804.0,0.24876581]
[1729875199567,0.005824,67805.0,67804.0,0.24876581]
[1729875199769,0.000824,67805.0,67804.0,0.24876581]
[1729875200681,0.000824,67805.0,67804.0,0.3517152]
[1729875200889,0.000824,67805.0,67804.0,0.34876581]
[1729875201630,0.000824,67805.0,67804.0,0.36110273]
[1729875202057,0.000824,67805.0,67804.0,0.42636559]
[1729875202302,0.000824,67805.0,67804.0,0.56927417]
[1729875202554,0.000824,67805.0,67804.0,0.49004273]
[1729875202773,0.000824,67805.0,67804.0,0.46250273]
[1729875203226,0.000824,67805.0,67804.0,0.50250273]
[1729875204068,0.001672,67816.0,67810.0,0.24747]
[1729875204289,0.001672,67816.0,67810.0,0.73640197]
[1729875204513,0.001672,67816.0,67810.0,0.73283363]
[1729875204735,0.001672,67816.0,67810.0,0.64591357]
[1729875206389,0.001672,67816.0,67810.0,0.66891357]
[1729875206594,0.001672,67816.0,67810.0,0.77954483]
[1729875206803,0.001672,67816.0,67810.0,0.77950343]
[1729875207007,0.001672,67816.0,67810.0,0.67091357]
[1729875207209,0.001672,67816.0,67810.0,0.77951451]
[1729875207446,0.001672,67816.0,67810.0,0.94725427]
[1729875207838,0.001672,67816.0,67810.0,0.77951451]
[1729875208051,0.001672,67816.0,67810.0,0.66891357]
[1729875208202,0.001672,67816.0,67810.0,0.75580159]
[1729875208403,0.001672,67816.0,67810.0,0.6308782]
[1729875208610,0.001672,67816.0,67810.0,0.60916005]
[1729875208789,0.001672,67816.0,67810.0,0.56571357]
[1729875210416,0.001672,67816.0,67810.0,0.56771357]
[1729875210738,0.001672,67816.0,67810.0,0.61116005]
[1729875211399,0.001672,67816.0,67810.0,0.56771357]
[1729875211602,0.001672,67816.0,67810.0,0.60916005]
[1729875211811,0.001672,67816.0,67810.0,0.56571357]
[1729875214065,0.001672,67816.0,67810.0,0.60916005]
[1729875214273,0.001672,67816.0,67810.0,0.56571357]
[1729875214479,0.001672,67816.0,67810.0,0.60922416]
[1729875214712,0.001672,67816.0,67810.0,0.82371922]
[1729875214914,0.001672,67816.0,67810.0,0.65597946]
[1729875215765,0.001672,67816.0,67810.0,0.65397946]
[1729875216196,0.001672,67816.0,67810.0,0.63221249]
[1729875217228,0.001672,67816.0,67810.0,0.58871357]
[1729875217636,0.001672,67816.0,67810.0,0.63221622]
[1729875217843,1e-06,67811.0,67810.0,0.66501357]
[1729875218665,1e-06,67812.0,67811.0,0.002]
[1729875218868,1e-06,67812.0,67811.0,0.59071157]
[1729875219274,1e-06,67812.0,67811.0,0.65598788]
[1729875220014,1e-06,67812.0,67811.0,0.59071157]
[1729875220239,1e-06,67812.0,67811.0,0.67774665]
[1729875220486,1e-06,67812.0,67811.0,0.59071157]
[1729875221121,1e-06,67812.0,67811.0,0.65599977]
[1729875221323,0.001672,67816.0,67815.0,0.27046]
[1729875221528,0.001672,67816.0,67815.0,0.75939172]
[1729875221736,0.001672,67816.0,67815.0,0.75844333]
[1729875222153,0.001672,67817.0,67816.0,0.224857]
[1729875222372,0.000836,67829.0,67828.0,0.147431]
[1729875222579,0.000836,67829.0,67828.0,0.29793481]
[1729875222991,0.000836,67829.0,67828.0,0.39793481]
[1729875224276,0.000836,67829.0,67828.0,0.56567457]
[1729875227584,0.000836,67829.0,67828.0,0.59521457]
[1729875227816,0.000836,67829.0,67828.0,0.56567457]
[1729875228685,0.000836,67829.0,67828.0,0.57801681]
[1729875231586,0.0057743,67842.0,67841.0,0.147403]
[1729875231799,0.0057743,67842.0,67841.0,0.29790681]
[1729875232013,0.005835,67843.0,67842.0,0.147401]
[1729875232229,0.005835,67843.0,67842.0,0.29790481]
[1729875234510,0.183135,67843.0,67842.0,0.29790481]
[1729875240719,0.20192073,67843.0,67842.0,0.29790481]
[1729875240986,0.20192054,67843.0,67842.0,0.29790481]
[1729875241260,0.188135,67843.0,67842.0,0.29790481]
[1729875244509,0.201929,67843.0,67842.0,0.29790481]
[1729875245166,0.188135,67843.0,67842.0,0.29790481]
[1729875245398,0.20193086,67843.0,67842.0,0.29790481]
[1729875245875,0.12273086,67843.0,67842.0,0.29790481]
[1729875246316,0.12273364,67843.0,67842.0,0.41289899]
[1729875246556,0.108935,67843.0,67842.0,0.41289899]
[1729875246666,0.1227341,67843.0,67842.0,0.41289899]
[1729875248807,0.1227341,67843.0,67842.0,0.29790481]
[1729875249592,0.1227341,67843.0,67835.0,0.147416]
[1729875249593,0.01,67836.0,67835.0,0.147416]
[1729875249822,0.10210828,67836.0,67835.0,0.15050381]
[1729875249992,0.10210828,67836.0,67835.0,0.29791981]
[1729875250226,0.185,67836.0,67835.0,0.29791981]
[1729875250429,0.19880978,67836.0,67835.0,0.29791981]
[1729875250700,0.0967,67828.0,67822.0,0.04368944]
[1729875250913,0.1067,67828.0,67827.0,0.147433]
[1729875251096,0.1067,67828.0,67823.0,0.15050381]
[1729875251097,0.005,67826.0,67825.0,0.147436]
[1729875251313,0.01,67826.0,67825.0,0.147438]
[1729875251815,0.005,67819.0,67818.0,0.147453]
[1729875251978,0.005,67819.0,67818.0,0.29795681]
[1729875254395,0.0883,67818.0,67817.0,0.001648]
[1729875255268,0.0883,67818.0,67817.0,0.149103]
[1729875257338,0.0883,67818.0,67817.0,0.001648]
[1729875258426,0.0883,67818.0,67817.0,0.14768431]
[1729875259078,0.0883,67818.0,67817.0,0.14626564]
[1729875259616,0.0883,67818.0,67817.0,0.14484697]
[1729875261646,0.01,67818.0,67817.0,0.14484697]
[1729875263703,0.005,67818.0,67817.0,0.29535078]
[1729875266514,0.005,67818.0,67817.0,0.15214981]
[1729875266715,0.005,67818.0,67817.0,0.29960481]
[1729875267145,0.005,67818.0,67817.0,0.46663469]
[1729875267603,0.005,67818.0,67817.0,0.29960481]
[1729875269743,0.005,67824.0,67817.0,0.23334981]
[1729875269941,0.0926,67836.0,67822.0,0.16702988]
[1729875269942,0.005,67833.0,67822.0,0.16702988]
[1729875270212,0.005,67833.0,67818.0,0.29785493]
[1729875270213,0.005,67833.0,67832.0,0.147423]
[1729875272076,0.005,67833.0,67832.0,0.29792681]
[1729875272287,0.01,67833.0,67832.0,0.147423]
[1729875272496,0.1067,67833.0,67832.0,0.147423]
[1729875272692,0.01,67829.0,67828.0,0.442294]
[1729875272920,0.01,67829.0,67828.0,0.59279781]
[1729875279920,0.01,67841.0,67828.0,0.59279781]
[1729875279921,0.005,67836.0,67835.0,0.147416]
[1729875280127,0.005,67836.0,67835.0,0.29791981]
[1729875280927,0.01,67836.0,67835.0,0.29791981]
[1729875281854,0.005,67836.0,67835.0,0.29791981]
[1729875282494,0.005,67838.0,67837.0,0.147412]
[1729875282698,0.005,67838.0,67837.0,0.46494569]
[1729875284701,0.010823,67842.0,67841.0,0.147403]
[1729875284905,0.010823,67842.0,67841.0,0.46493669]
[1729875292410,0.010823,67842.0,67841.0,0.41291412]
[1729875292856,0.005823,67842.0,67841.0,0.52792143]
[1729875293056,0.005823,67842.0,67841.0,0.41291412]
[1729875293303,0.000823,67842.0,67841.0,0.52792143]
[1729875293506,0.005823,67842.0,67841.0,0.52792143]
[1729875294121,0.000823,67842.0,67841.0,0.60912143]
[1729875295385,0.000823,67842.0,67825.0,0.04364632]
[1729875295386,0.15132681,67842.0,67825.0,0.04364632]
[1729875295591,0.01,67824.0,67823.0,0.22116228]
[1729875295801,0.005,67824.0,67823.0,0.22116228]
[1729875296023,0.01,67824.0,67820.0,0.147447]
[1729875296236,0.01,67824.0,67819.0,0.294902]
[1729875296237,0.005,67821.0,67819.0,0.14745]
[1729875296449,0.005,67821.0,67817.0,0.001646]
[1729875296655,0.005,67819.0,67818.0,0.15050381]
[1729875297533,0.005,67819.0,67818.0,0.14908516]
[1729875297887,0.005,67819.0,67818.0,0.14766651]
[1729875298516,0.005,67819.0,67818.0,0.14624786]
[1729875306573,0.005,67819.0,67818.0,0.29370086]
[1729875306921,0.005,67819.0,67818.0,0.14624786]
[1729875307015,0.005,67819.0,67818.0,0.29370086]
[1729875307235,0.005,67819.0,67818.0,0.14624786]
[1729875307855,0.005,67818.0,67817.0,0.031646]
[1729875308073,0.01,67818.0,67817.0,0.031646]
[1729875308519,0.252353,67818.0,67817.0,0.031646]
[1729875308725,0.34741927,67818.0,67817.0,0.031646]
[1729875308933,0.35741927,67818.0,67817.0,0.031646]
[1729875309379,0.50992308,67818.0,67817.0,0.031646]
[1729875309598,0.53195057,67818.0,67817.0,0.031646]
[1729875310238,0.53195057,67818.0,67805.0,0.001648]
[1729875310239,0.157479,67806.0,67805.0,0.001648]
[1729875310458,0.01,67806.0,67805.0,0.001648]
[1729875310695,0.01,67806.0,67805.0,0.149129]
[1729875311411,0.005,67806.0,67805.0,0.29963281]
[1729875319533,0.01,67806.0,67805.0,0.001648]
[1729875319724,0.50732515,67806.0,67805.0,0.001648]
[1729875319928,0.62854746,67806.0,67805.0,0.001648]
[1729875320075,0.63354746,67806.0,67805.0,0.001648]
[1729875320282,0.52232515,67806.0,67805.0,0.001648]
[1729875320705,0.53606699,67806.0,67805.0,0.001648]
[1729875321148,0.355279,67806.0,67805.0,0.001648]
[1729875323990,0.70957657,67806.0,67805.0,0.001648]
[1729875324260,0.71157657,67806.0,67805.0,0.001648]
[1729875324503,0.9840782,67806.0,67805.0,0.001648]
[1729875324762,0.9840782,67806.0,67804.0,0.001648]
[1729875324763,0.468181,67805.0,67804.0,0.001648]
[1729875325000,0.83070029,67805.0,67804.0,0.001648]
[1729875325474,0.66365414,67805.0,67804.0,0.001648]
[1729875327653,0.66165414,67805.0,67804.0,0.001648]
[1729875327905,0.65443024,67805.0,67804.0,0.001648]
[1729875328578,0.65243024,67805.0,67804.0,0.001648]
[1729875328990,0.65443024,67805.0,67804.0,0.001648]
[1729875329203,0.65243024,67805.0,67804.0,0.001648]
[1729875330055,0.74690657,67805.0,67804.0,0.001648]
[1729875330469,0.74890657,67805.0,67804.0,0.001648]
[1729875331373,0.75813092,67805.0,67804.0,0.001648]
[1729875331581,0.92517705,67805.0,67804.0,0.001648]
[1729875331789,0.7581309,67805.0,67804.0,0.001648]
[1729875332853,0.83070072,67805.0,67804.0,0.001648]
[1729875333741,0.82870072,67805.0,67804.0,0.001648]
[1729875334633,0.83070072,67805.0,67804.0,0.001648]
[1729875336159,0.83152472,67805.0,67804.0,0.001648]
[1729875336377,0.83157432,67805.0,67804.0,0.001648]
[1729875337739,0.98207813,67805.0,67804.0,0.001648]
[1729875338402,0.85451963,67805.0,67804.0,0.001648]
[1729875339892,0.85251963,67805.0,67804.0,0.001648]
[1729875340342,0.85451963,67805.0,67804.0,0.001648]
[1729875342497,0.85251963,67805.0,67804.0,0.001648]
[1729875342887,0.82957432,67805.0,67804.0,0.001648]
[1729875344351,0.83157432,67805.0,67804.0,0.001648]
[1729875345831,0.82957432,67805.0,67804.0,0.001648]
[1729875346039,0.87759257,67805.0,67804.0,0.001648]
[1729875346339,0.82957432,67805.0,67804.0,0.001648]
[1729875346550,0.83157432,67805.0,67804.0,0.001648]
[1729875346782,0.85451963,67805.0,67804.0,0.001648]
[1729875347202,0.85251963,67805.0,67804.0,0.001648]
[1729875347413,0.85257063,67805.0,67804.0,0.001648]
[1729875347616,0.82957432,67805.0,67804.0,0.001648]
[1729875347822,0.83157432,67805.0,67804.0,0.001648]
[1729875348234,0.027,67801.0,67800.0,0.001706]
[1729875348437,0.21028469,67801.0,67800.0,0.001706]
[1729875348658,0.21028469,67801.0,67770.0,0.04361156]
[1729875348659,0.21028469,67801.0,67775.0,0.001648]
[1729875348660,0.60664846,67801.0,67775.0,0.001648]
[1729875348879,0.60664846,67801.0,67766.0,0.001648]
[1729875348880,0.015,67752.0,67751.0,0.08770644]
[1729875349094,0.015,67752.0,67724.0,0.13155333]
[1729875349095,0.1754,67763.0,67724.0,0.13155333]
[1729875349096,0.01,67750.0,67740.0,0.149269]
[1729875349305,0.01,67750.0,67741.0,0.147619]
[1729875349521,0.01,67750.0,67742.0,0.01100522]
[1729875349723,0.01,67750.0,67746.0,0.0832]
[1729875354489,0.01,67750.0,67741.0,0.22140385]
[1729875355775,0.157601,67750.0,67741.0,0.22140385]
[1729875356209,0.32464715,67750.0,67741.0,0.22140385]
[1729875357455,0.32464715,67750.0,67740.0,0.001648]
[1729875357456,0.32964715,67750.0,67740.0,0.001648]
[1729875357807,0.68535417,67750.0,67740.0,0.001648]
[1729875358015,0.69909207,67750.0,67740.0,0.001648]
[1729875358141,0.72209207,67750.0,67740.0,0.001648]
[1729875358344,0.88913822,67750.0,67740.0,0.001648]
[1729875359012,0.57701333,67750.0,67740.0,0.001648]
[1729875359194,0.72209207,67750.0,67740.0,0.001648]
[1729875359948,0.172621,67741.0,67740.0,0.001648]
[1729875360166,0.6127448,67741.0,67740.0,0.001648]
[1729875360404,0.78824861,67741.0,67740.0,0.001648]
[1729875360850,0.174627,67738.0,67737.0,0.00167]
[1729875361047,0.34813081,67738.0,67737.0,0.00167]
[1729875361425,0.49863462,67738.0,67737.0,0.00167]
[1729875361603,0.49863462,67738.0,67720.0,0.22140385]
[1729875361604,0.36468415,67733.0,67728.0,0.22140385]
[1729875361749,0.51518796,67733.0,67728.0,0.22140385]
[1729875361950,0.78223411,67733.0,67728.0,0.22140385]
[1729875362177,0.78223411,67733.0,67720.0,0.22140385]
[1729875362178,0.90495779,67733.0,67720.0,0.22140385]
[1729875362382,0.015,67721.0,67720.0,0.22140385]
[1729875362597,0.4987563,67721.0,67720.0,0.22140385]
[1729875362794,0.4987563,67721.0,67713.0,0.22140385]
[1729875362795,0.157679,67714.0,67713.0,0.22140385]
[1729875362999,0.157679,67714.0,67703.0,0.01249549]
[1729875363000,0.157695,67707.0,67703.0,0.01249549]
[1729875363297,0.17704615,67707.0,67703.0,0.01249549]
[1729875363758,0.17704615,67707.0,67692.0,0.0777]
[1729875363759,0.005,67693.0,67692.0,0.44683085]
[1729875364268,0.005,67693.0,67688.0,0.29552294]
[1729875364269,0.005,67689.0,67688.0,5.194e-05]
[1729875364526,0.17704615,67689.0,67688.0,0.14778794]
[1729875364732,0.01,67689.0,67688.0,0.14778794]
[1729875365404,0.01,67689.0,67688.0,5.194e-05]
[1729875365613,0.17704615,67689.0,67688.0,5.194e-05]
[1729875366030,0.19475077,67689.0,67688.0,5.194e-05]
[1729875366237,0.17704615,67689.0,67688.0,5.194e-05]
[1729875366470,0.32478015,67689.0,67688.0,5.194e-05]
[1729875367116,0.32978015,67689.0,67688.0,5.194e-05]
[1729875367604,0.33178015,67689.0,67688.0,5.194e-05]
[1729875367820,0.73818284,67689.0,67688.0,5.194e-05]
[1729875368101,0.76118284,67689.0,67688.0,5.194e-05]
[1729875368311,0.86118284,67689.0,67688.0,5.194e-05]
[1729875368762,0.69413669,67689.0,67688.0,5.194e-05]
[1729875368983,0.36479515,67682.0,67670.0,0.22140385]
[1729875369268,0.61087528,67682.0,67670.0,0.22140385]
[1729875369905,0.162749,67682.0,67674.0,0.16704615]
[1729875370110,0.162749,67682.0,67678.0,0.16704615]
[1729875370111,0.015,67682.0,67678.0,0.16704615]
[1729875370322,0.015,67682.0,67675.0,0.295528]
[1729875370553,0.025,67682.0,67675.0,0.295528]
[1729875370764,0.01,67682.0,67681.0,0.149421]
[1729875371174,0.01,67682.0,67681.0,0.00167]
[1729875371591,0.162749,67682.0,67681.0,0.00167]
[1729875371824,0.015,67682.0,67681.0,0.00167]
[1729875372235,0.162749,67682.0,67681.0,0.00167]
[1729875372850,0.2144806,67682.0,67681.0,0.00167]
[1729875373058,0.162749,67682.0,67681.0,0.00167]
[1729875373884,0.172749,67682.0,67681.0,0.00167]
[1729875377506,0.32325281,67682.0,67681.0,0.00167]
[1729875378105,0.34625281,67682.0,67681.0,0.00167]
[1729875378315,0.46688051,67682.0,67681.0,0.00167]
[1729875379117,0.56358051,67682.0,67681.0,0.00167]
[1729875379525,0.63968051,67682.0,67681.0,0.00167]
[1729875379728,0.73968051,67682.0,67681.0,0.00167]
[1729875380106,0.54095281,67682.0,67681.0,0.00167]
[1729875380685,0.172749,67682.0,67681.0,0.00167]
[1729875380895,0.01,67682.0,67681.0,0.00167]
[1729875381104,0.01,67682.0,67681.0,0.149421]
[1729875381310,0.005,67682.0,67681.0,0.149421]
[1729875381521,0.005,67682.0,67681.0,0.444924]
[1729875381728,0.005,67682.0,67681.0,0.59542781]
[1729875381934,0.005,67687.0,67682.0,0.295499]
[1729875381935,0.005,67684.0,67682.0,0.295499]
[1729875382131,0.005,67687.0,67686.0,0.147741]
[1729875382346,0.01,67687.0,67686.0,0.147741]
[1729875383230,0.005,67689.0,67688.0,0.147736]
[1729875383547,0.01,67691.0,67690.0,0.147732]
[1729875384753,0.005,67691.0,67690.0,0.147732]
[1729875384950,0.01,67691.0,67690.0,0.147732]
[1729875385458,0.005,67691.0,67690.0,0.147732]
[1729875385677,0.005,67690.0,67686.0,0.378181]
[1729875385942,0.005,67682.0,67677.0,0.0767]
[1729875386194,0.01,67682.0,67678.0,0.295516]
[1729875386401,0.01,67682.0,67680.0,0.147753]
[1729875386826,0.01,67682.0,67678.0,0.147757]
[1729875387041,0.01,67682.0,67678.0,0.591032]
[1729875387453,0.01,67682.0,67681.0,0.149421]
[1729875391599,0.01,67682.0,67681.0,0.16043251]
[1729875391806,0.01,67682.0,67681.0,0.149421]
[1729875392174,0.01,67682.0,67681.0,0.16044372]
[1729875393819,0.01,67682.0,67681.0,0.01269272]
[1729875394648,0.45402435,67682.0,67681.0,0.01269272]
[1729875394870,0.2376205,67682.0,67681.0,0.01269272]
[1729875395073,0.172749,67682.0,67681.0,0.01269272]
[1729875395414,0.172749,67682.0,67681.0,0.00167]
[1729875396048,0.34625281,67682.0,67681.0,0.00167]
[1729875396863,0.43725281,67682.0,67681.0,0.00167]
[1729875397070,0.57479885,67682.0,67681.0,0.00167]
[1729875397768,0.43725281,67682.0,67681.0,0.00167]
[1729875399022,0.263749,67682.0,67681.0,0.00167]
[1729875399222,0.172749,67682.0,67681.0,0.00167]
[1729875399670,0.34825281,67682.0,67681.0,0.00167]
[1729875400081,0.39414338,67682.0,67681.0,0.00167]
[1729875400286,0.51937848,67682.0,67681.0,0.00167]
[1729875400883,0.79027848,67682.0,67681.0,0.00167]
[1729875401709,0.80404574,67682.0,67681.0,0.00167]
[1729875402340,1.1397929,67682.0,67681.0,0.00167]
[1729875403597,0.84468422,67682.0,67681.0,0.00167]
[1729875403809,0.56161987,67682.0,67681.0,0.00167]
[1729875404019,0.4230293,67682.0,67681.0,0.00167]